bitfinex-derivatives/quotes_BTCF0:USTF0_20210409
["timestamp","ask_amount","ask_price","bid_price","bid_amount"]
[1617970688996,9.06627381,58642.0,58599.0,0.0911956]
[1617970688997,1.5,58640.0,58636.0,0.01519982]
[1617970689196,1.60725655,58637.0,58636.0,0.01519982]
[1617970689398,1.60725655,58637.0,58620.0,0.10725655]
[1617970689399,3.42604306,58637.0,58620.0,0.10725655]
[1617970689596,1.5,58635.0,58620.0,0.10725655]
[1617970689796,0.74624821,58621.0,58620.0,0.10725655]
[1617970690096,3.35785821,58621.0,58620.0,0.10725655]
[1617970690297,3.35785821,58621.0,58620.0,0.27]
[1617970690497,1.85785821,58621.0,58620.0,0.28520205]
[1617970690699,5.20525821,58621.0,58620.0,0.01520205]
[1617970690899,6.22209512,58621.0,58620.0,0.01520205]
[1617970691099,6.32935167,58621.0,58620.0,0.28520205]
[1617970691299,6.32935167,58621.0,58620.0,0.27]
[1617970691699,6.38015167,58621.0,58620.0,0.01520193]
[1617970692102,6.38015167,58621.0,58620.0,0.27]
[1617970692302,6.38015167,58621.0,58620.0,0.01520187]
[1617970692701,6.38015167,58621.0,58616.0,0.27]
[1617970692901,5.32935167,58621.0,58614.0,0.01520184]
[1617970693100,5.22209512,58621.0,58617.0,0.015202]
[1617970693303,1.01681926,58620.0,58617.0,0.015202]
[1617970693502,1.01681926,58620.0,58615.0,0.01520194]
[1617970693801,1.01681926,58620.0,58613.0,0.10725655]
[1617970693802,0.51261322,58620.0,58618.0,0.28520194]
[1617970694002,0.51261322,58620.0,58618.0,0.01520194]
[1617970694204,0.21278547,58619.0,58613.0,0.10725655]
[1617970694604,0.95908692,58619.0,58616.0,0.27]
[1617970695103,0.29984287,58620.0,58614.0,0.27]
[1617970695104,0.44372179,58617.0,58614.0,0.27]
[1617970695303,0.44372179,58617.0,58615.0,0.27]
[1617970695503,0.74629329,58617.0,58614.0,0.27]
[1617970695703,0.74629329,58617.0,58616.0,0.28520244]
[1617970696006,0.51269442,58620.0,58616.0,0.01520244]
[1617970696405,0.74629373,58617.0,58616.0,0.27]
[1617970696907,0.74629373,58617.0,58616.0,0.01520228]
[1617970697305,0.74629373,58617.0,58615.0,0.28520295]
[1617970697505,0.74629373,58617.0,58616.0,0.27]
[1617970697705,0.74629373,58617.0,58616.0,0.01520295]
[1617970698106,0.74629373,58617.0,58616.0,0.28520295]
[1617970703010,0.86140373,58617.0,58616.0,0.28520295]
[1617970703609,1.07450296,58617.0,58616.0,0.28520295]
[1617970703910,0.63077982,58617.0,58616.0,0.28520295]
[1617970704111,0.21309923,58617.0,58616.0,0.28520295]
[1617970704411,0.95895148,58617.0,58616.0,0.28520295]
[1617970704813,0.74585225,58617.0,58616.0,0.28520295]
[1617970706713,0.86476227,58617.0,58616.0,0.28520295]
[1617970707212,1.07571157,58617.0,58616.0,0.28520295]
[1617970707616,0.86476227,58617.0,58616.0,0.28520295]
[1617970708214,0.13918,58617.0,58616.0,0.27]
[1617970708413,1.0,58620.0,58616.0,0.27]
[1617970708614,1.0,58620.0,58616.0,0.01520282]
[1617970708815,0.44354359,58617.0,58616.0,0.01520282]
[1617970709014,0.44354359,58617.0,58615.0,0.01520286]
[1617970709215,0.44354359,58617.0,58616.0,0.27]
[1617970709514,1.0,58620.0,58615.0,0.06]
[1617970709515,1.50401332,58620.0,58615.0,0.06]
[1617970709714,1.50401332,58620.0,58614.0,0.01520283]
[1617970709915,1.50401328,58619.0,58616.0,0.28520283]
[1617970710116,1.50401328,58619.0,58615.0,0.06]
[1617970710315,1.0,58618.0,58617.0,0.01520281]
[1617970710516,1.50401513,58618.0,58617.0,0.01520281]
[1617970710715,0.50401513,58618.0,58616.0,0.06]
[1617970710916,1.0,58617.0,58614.0,0.01520281]
[1617970711116,1.9475583,58618.0,58615.0,0.27]
[1617970711317,1.50401513,58618.0,58615.0,0.27]
[1617970711523,1.50401513,58618.0,58615.0,0.01520287]
[1617970711717,0.80646875,58616.0,58615.0,0.01520287]
[1617970711918,2.7519,58615.0,58613.0,0.10725655]
[1617970712319,2.7519,58615.0,58614.0,0.06]
[1617970712529,2.7519,58615.0,58614.0,0.07520326]
[1617970713123,3.55838313,58615.0,58614.0,0.07520326]
[1617970713320,3.66563968,58615.0,58614.0,0.07520326]
[1617970720834,3.22208404,58615.0,58614.0,0.07520326]
[1617970721636,3.37130404,58615.0,58614.0,0.07520326]
[1617970722337,3.81460111,58615.0,58614.0,0.07520326]
[1617970723151,3.37130404,58615.0,58614.0,0.07520326]
[1617970723335,3.22208404,58615.0,58614.0,0.07520326]
[1617970724838,3.66553464,58615.0,58614.0,0.07520326]
[1617970725560,3.22208404,58615.0,58614.0,0.07520326]
[1617970725838,3.66552462,58615.0,58614.0,0.07520326]
[1617970726153,3.66552462,58615.0,58614.0,0.07520249]
[1617970726337,3.22208404,58615.0,58614.0,0.07520249]
[1617970726639,3.6655331,58615.0,58614.0,0.07520249]
[1617970726937,3.75057263,58615.0,58614.0,0.07520285]
[1617970727438,2.94419608,58615.0,58614.0,0.07520285]
[1617970727639,3.75049584,58615.0,58614.0,0.07520285]
[1617970728641,3.75049584,58615.0,58614.0,0.01520285]
[1617970728842,4.25441962,58615.0,58614.0,0.01520285]
[1617970731847,5.25441962,58615.0,58614.0,0.01520285]
[1617970732576,6.75441962,58615.0,58597.0,0.01520457]
[1617970732946,4.02279009,58615.0,58596.0,0.01520455]
[1617970733147,2.7396,58597.0,58596.0,0.01520455]
[1617970733451,2.97650655,58597.0,58595.0,0.07520483]
[1617970733660,3.54842001,58597.0,58596.0,0.27]
[1617970733844,3.54842001,58597.0,58596.0,0.01520481]
[1617970734043,2.97650655,58597.0,58596.0,0.01520481]
[1617970734257,2.97650655,58597.0,58596.0,0.28520481]
[1617970734470,3.33983391,58597.0,58596.0,0.27]
[1617970734644,3.33983391,58597.0,58592.0,0.01520481]
[1617970734952,3.33983391,58597.0,58596.0,0.28520493]
[1617970735165,3.33983391,58597.0,58594.0,0.14]
[1617970735368,0.36333586,58595.0,58594.0,0.10725655]
[1617970735771,1.36333586,58595.0,58594.0,0.10725655]
[1617970735947,1.36333586,58595.0,58594.0,0.37725655]
[1617970736148,2.86333586,58595.0,58589.0,0.35906799]
[1617970736346,6.23003586,58595.0,58594.0,0.01520681]
[1617970736548,6.31011184,58595.0,58594.0,0.01520681]
[1617970736746,6.31011184,58595.0,58590.0,0.0152077]
[1617970736948,6.97530853,58595.0,58590.0,0.0152077]
[1617970737346,6.97530853,58595.0,58581.0,0.01520923]
[1617970737347,1.10725655,58591.0,58581.0,0.01520923]
[1617970737648,3.71598336,58591.0,58581.0,0.01520923]
[1617970738049,0.30240291,58582.0,58581.0,0.01520923]
[1617970738250,0.39599291,58582.0,58581.0,0.01520923]
[1617970738450,0.39599291,58582.0,58581.0,0.28520923]
[1617970738649,3.53059291,58582.0,58581.0,0.28520923]
[1617970739056,6.03059291,58582.0,58581.0,0.01520923]
[1617970739251,4.53059291,58582.0,58581.0,0.01520923]
[1617970739452,5.00071863,58582.0,58581.0,0.01520923]
[1617970739651,5.00071863,58582.0,58576.0,0.01520984]
[1617970740051,4.00071863,58582.0,58581.0,0.01520977]
[1617970740252,3.33544655,58582.0,58581.0,0.01520977]
[1617970740452,4.33544655,58582.0,58573.0,0.0152098]
[1617970740856,5.00072544,58582.0,58581.0,0.0152098]
[1617970741254,5.00072544,58582.0,58568.0,0.10725655]
[1617970741255,5.00072544,58582.0,58575.0,0.29971953]
[1617970741454,4.89346889,58582.0,58581.0,0.0152099]
[1617970741755,3.53059866,58582.0,58581.0,0.0152099]
[1617970742156,3.89411077,58582.0,58581.0,0.0152099]
[1617970742555,4.89411077,58582.0,58581.0,0.0152099]
[1617970743059,1.75951077,58582.0,58581.0,0.0152099]
[1617970743256,0.75951077,58582.0,58581.0,0.0152099]
[1617970743458,0.66592077,58582.0,58581.0,0.0152099]
[1617970744165,0.66592077,58582.0,58581.0,0.1282399]
[1617970744365,0.30240866,58582.0,58581.0,0.69824216]
[1617970746176,0.30240866,58582.0,58581.0,1.05817119]
[1617970746573,0.30240866,58582.0,58581.0,0.69824216]
[1617970746957,0.28213005,58582.0,58581.0,0.69824216]
[1617970747858,0.28213005,58582.0,58581.0,0.3982399]
[1617970747859,0.64562042,58582.0,58581.0,0.3982399]
[1617970748058,0.64562042,58582.0,58581.0,0.2852099]
[1617970748659,0.64562042,58582.0,58581.0,0.4258699]
[1617970749160,0.28213005,58582.0,58581.0,0.4258699]
[1617970749558,0.28213005,58582.0,58581.0,1.4258699]
[1617970749859,0.01019437,58582.0,58581.0,1.78576744]
[1617970750159,0.01019437,58582.0,58581.0,5.01426744]
[1617970750559,0.01019437,58582.0,58581.0,4.99905754]
[1617970750859,0.01019519,58583.0,58581.0,5.01426523]
[1617970751160,0.01019519,58583.0,58582.0,0.01520723]
[1617970751359,3.5394,58604.0,58582.0,0.01520723]
[1617970751360,0.01019477,58585.0,58582.0,0.01520723]
[1617970751559,0.01019433,58587.0,58582.0,1.72462442]
[1617970751760,0.01019433,58587.0,58586.0,1.0]
[1617970752167,0.01019425,58590.0,58586.0,2.068509]
[1617970752360,0.01019425,58590.0,58586.0,1.08371513]
[1617970752561,0.01019404,58591.0,58587.0,0.01520613]
[1617970752760,0.01019404,58591.0,58589.0,1.0]
[1617970753061,0.01019404,58591.0,58590.0,0.35925975]
[1617970753262,0.01019404,58591.0,58590.0,1.62925975]
[1617970753462,0.01019404,58591.0,58590.0,1.7365163]
[1617970753663,0.01019404,58591.0,58590.0,1.48172222]
[1617970753861,0.01019404,58591.0,58590.0,1.75172222]
[1617970754163,0.01019365,58592.0,58590.0,1.81254441]
[1617970754364,0.01019365,58592.0,58591.0,2.6367]
[1617970754861,0.01019324,58594.0,58591.0,4.34178324]
[1617970755265,0.01019324,58594.0,58592.0,0.01520462]
[1617970755465,0.01019287,58596.0,58593.0,3.15852672]
[1617970755765,0.01019237,58599.0,58594.0,0.2]
[1617970756065,0.01019237,58599.0,58595.0,1.0]
[1617970756266,0.01019221,58600.0,58598.0,0.35866668]
[1617970756463,0.01019221,58600.0,58599.0,0.2]
[1617970756663,0.01019221,58600.0,58599.0,0.48520292]
[1617970756865,0.5652137,58623.0,58599.0,0.48520292]
[1617970756866,0.01019187,58602.0,58599.0,1.84377621]
[1617970757064,0.01019187,58602.0,58599.0,0.84377621]
[1617970757265,0.01019187,58602.0,58601.0,1.0]
[1617970757565,0.010196,58603.0,58601.0,2.10429684]
[1617970757864,0.010196,58603.0,58601.0,1.38949884]
[1617970758065,0.01019596,58604.0,58602.0,0.41942517]
[1617970758265,0.01019596,58604.0,58603.0,0.2]
[1617970758466,0.36352079,58607.0,58603.0,3.76925081]
[1617970758768,0.36352079,58607.0,58603.0,4.78445271]
[1617970758967,0.36352079,58607.0,58605.0,0.35861893]
[1617970759167,0.36352079,58607.0,58606.0,1.0]
[1617970759368,0.36352079,58607.0,58606.0,1.62862125]
[1617970759567,0.36352079,58607.0,58606.0,1.64382317]
[1617970759868,0.36352079,58607.0,58606.0,1.34600957]
[1617970760969,0.36352079,58607.0,58606.0,0.34600957]
[1617970761270,0.36352079,58607.0,58606.0,3.72510957]
[1617970761471,0.36352079,58607.0,58606.0,3.66430192]
[1617970762170,0.36352079,58607.0,58606.0,4.66430192]
[1617970762471,0.36352079,58607.0,58606.0,3.66430192]
[1617970763071,0.36352079,58607.0,58606.0,4.66430192]
[1617970763672,0.36338581,58608.0,58606.0,4.66430192]
[1617970763874,0.36338581,58608.0,58607.0,1.0]
[1617970764073,0.36338581,58608.0,58607.0,1.01520182]
[1617970764374,0.36338581,58608.0,58607.0,1.28520182]
[1617970764573,0.56171393,58609.0,58607.0,1.28520182]
[1617970765074,0.56171393,58609.0,58608.0,1.0]
[1617970765272,0.56171393,58609.0,58608.0,1.01520155]
[1617970765474,0.56171393,58609.0,58608.0,1.28520155]
[1617970765672,0.56171393,58609.0,58608.0,1.3924581]
[1617970766475,0.56171393,58609.0,58608.0,0.3924581]
[1617970767376,0.54144503,58609.0,58608.0,0.3924581]
[1617970767874,0.54144503,58609.0,58608.0,1.3924581]
[1617970768074,0.54144503,58609.0,58608.0,0.3924581]
[1617970769478,0.54144503,58609.0,58608.0,3.5220581]
[1617970769678,0.36338593,58609.0,58608.0,3.5220581]
[1617970770210,0.36338593,58609.0,58608.0,4.6585681]
[1617970770880,0.3635157,58611.0,58608.0,5.0169277]
[1617970771379,0.3635157,58611.0,58609.0,0.43431441]
[1617970771580,0.3635157,58611.0,58610.0,1.0]
[1617970771780,0.3635046,58612.0,58610.0,1.70397267]
[1617970772281,0.36349563,58613.0,58611.0,0.43368405]
[1617970772780,0.36349563,58613.0,58612.0,0.3308016]
[1617970772979,0.36349563,58613.0,58612.0,0.34600204]
[1617970773181,0.36349563,58613.0,58612.0,0.28520044]
[1617970777585,0.66625342,58613.0,58612.0,0.28520044]
[1617970779688,0.66625342,58613.0,58612.0,0.58400973]
[1617970780888,0.66625342,58613.0,58612.0,1.58400973]
[1617970781287,0.66625342,58613.0,58612.0,0.58400973]
[1617970782388,0.66625342,58613.0,58612.0,0.28520044]
[1617970784393,0.30275779,58613.0,58612.0,0.28520044]
[1617970786795,0.30275779,58613.0,58612.0,1.28520044]
[1617970787294,0.30275779,58613.0,58612.0,1.58370312]
[1617970787597,0.28249034,58613.0,58612.0,1.58370312]
[1617970787795,0.36313471,58617.0,58612.0,1.58370312]
[1617970788098,0.36313379,58615.0,58614.0,1.0]
[1617970788495,0.36313379,58615.0,58614.0,3.2876]
[1617970788698,0.36313379,58615.0,58614.0,3.30280062]
[1617970788896,0.36313379,58615.0,58614.0,3.57280062]
[1617970789800,0.36313379,58615.0,58614.0,4.68005717]
[1617970790001,0.36312354,58618.0,58614.0,4.68005717]
[1617970790301,0.36312354,58618.0,58614.0,3.78567717]
[1617970790500,0.36312354,58618.0,58615.0,0.01520017]
[1617970790700,0.36312354,58618.0,58617.0,1.0]
[1617970790901,0.36303599,58619.0,58617.0,4.2312]
[1617970791401,0.44379207,58623.0,58619.0,1.0]
[1617970791600,0.44379207,58623.0,58618.0,0.01520014]
[1617970791901,0.44379207,58623.0,58622.0,0.10725655]
[1617970792102,0.79445172,58628.0,58622.0,0.10725655]
[1617970792401,0.79445172,58628.0,58622.0,0.37725655]
[1617970792602,0.50417575,58627.0,58623.0,0.01520011]
[1617970793003,0.49030471,58628.0,58624.0,0.27]
[1617970793503,0.80672124,58625.0,58624.0,0.27]
[1617970794003,0.80672124,58625.0,58624.0,0.28520011]
[1617970794203,0.80672124,58625.0,58624.0,0.01520011]
[1617970794403,0.80672124,58625.0,58624.0,0.28520011]
[1617970797108,1.31232895,58625.0,58624.0,0.28520011]
[1617970806319,0.94929431,58625.0,58624.0,0.28520011]
[1617970806519,1.51685219,58625.0,58624.0,0.28520011]
[1617970806718,1.31331062,58625.0,58624.0,0.28520011]
[1617970807119,0.86962402,58625.0,58624.0,0.28520011]
[1617970807319,1.51805236,58625.0,58624.0,0.28520011]
[1617970807619,1.31451067,58625.0,58624.0,0.28520011]
[1617970807820,1.29424443,58625.0,58624.0,0.28520011]
[1617970808321,1.4955003,58625.0,58624.0,1.28520011]
[1617970808522,1.4955003,58625.0,58624.0,1.28519964]
[1617970808722,1.29424443,58625.0,58624.0,1.28519964]
[1617970809222,4.71464443,58625.0,58624.0,1.28519964]
[1617970809622,5.20769247,58625.0,58624.0,1.28519964]
[1617970809822,1.78729247,58625.0,58624.0,1.28519964]
[1617970810023,1.78729247,58625.0,58624.0,4.86259964]
[1617970810223,1.78729247,58625.0,58624.0,3.86259964]
[1617970810723,1.29424443,58625.0,58624.0,3.86259964]
[1617970811125,1.49550135,58625.0,58624.0,3.86259964]
[1617970811524,1.29424443,58625.0,58624.0,0.28519964]
[1617970811725,1.29424443,58625.0,58624.0,1.28519964]
[1617970811926,4.31984443,58625.0,58624.0,1.28519964]
[1617970812446,4.8025496,58625.0,58624.0,0.28519964]
[1617970813631,1.7769496,58625.0,58624.0,0.28519964]
[1617970814332,1.29424443,58625.0,58624.0,0.28519964]
[1617970814834,1.48957692,58625.0,58624.0,0.28519964]
[1617970815134,4.35324443,58625.0,58624.0,0.28519964]
[1617970815433,5.35324443,58625.0,58624.0,0.28519964]
[1617970815634,4.83595915,58625.0,58624.0,0.28519964]
[1617970816137,5.3633024,58625.0,58624.0,0.28519964]
[1617970816535,4.9432157,58625.0,58624.0,0.28519964]
[1617970818038,5.24669714,58625.0,58624.0,0.28519964]
[1617970818540,6.23334553,58625.0,58624.0,0.28519964]
[1617970819039,5.24669714,58625.0,58624.0,0.28519964]
[1617970821846,6.81317773,58625.0,58624.0,0.28519964]
[1617970822245,7.2334484,58625.0,58624.0,0.28519964]
[1617970822445,6.2334484,58625.0,58624.0,0.28519964]
[1617970822645,7.2334484,58625.0,58624.0,0.28519964]
[1617970822846,6.2334484,58625.0,58624.0,0.07720932]
[1617970823447,3.1744484,58625.0,58624.0,0.07720932]
[1617970823647,2.75417773,58625.0,58624.0,0.07720932]
[1617970823949,3.75417773,58625.0,58624.0,2.92250932]
[1617970824148,2.46679971,58625.0,58624.0,2.92250932]
[1617970824849,2.35954316,58625.0,58624.0,2.92250932]
[1617970825257,1.59772587,58625.0,58624.0,2.92250932]
[1617970826053,1.59772587,58625.0,58624.0,4.02976587]
[1617970826460,1.59772587,58625.0,58624.0,3.02976587]
[1617970828152,1.57745975,58625.0,58624.0,3.02976587]
[1617970828353,1.77223737,58625.0,58624.0,3.02976587]
[1617970828853,1.57745975,58625.0,58624.0,3.02976587]
[1617970829156,1.77223723,58625.0,58624.0,3.02976587]
[1617970829554,1.57745975,58625.0,58624.0,3.02976587]
[1617970833260,1.57745975,58625.0,58624.0,4.02976587]
[1617970833859,1.57745975,58625.0,58624.0,3.02976587]
[1617970834960,1.57745975,58625.0,58624.0,3.13126587]
[1617970835760,1.57745975,58625.0,58624.0,4.13126587]
[1617970836361,1.57745975,58625.0,58624.0,3.13126587]
[1617970837662,1.57745975,58625.0,58624.0,4.13126587]
[1617970837962,1.57745975,58625.0,58624.0,3.13126587]
[1617970838963,1.57745975,58625.0,58624.0,4.13126587]
[1617970839465,1.57745975,58625.0,58624.0,3.13126587]
[1617970839665,1.57745975,58625.0,58624.0,3.02976587]
[1617970841165,1.57745975,58625.0,58624.0,0.18446587]
[1617970841365,1.68113975,58625.0,58624.0,0.18446587]
[1617970842168,1.86694062,58625.0,58624.0,0.18446587]
[1617970844070,1.76326062,58625.0,58624.0,3.54226587]
[1617970844770,1.57745975,58625.0,58624.0,3.54226587]
[1617970844968,1.57745975,58625.0,58624.0,0.18446587]
[1617970845170,1.764087,58625.0,58624.0,0.18446587]
[1617970845569,1.57745975,58625.0,58624.0,0.18446587]
[1617970848074,1.6847163,58625.0,58624.0,0.18446587]
[1617970848270,1.66444881,58625.0,58624.0,0.18446587]
[1617970848769,1.84890539,58625.0,58624.0,0.18446587]
[1617970863888,1.74164884,58625.0,58624.0,0.18446587]
[1617970864689,1.55719226,58625.0,58624.0,0.18446587]
[1617970865298,1.7435074,58625.0,58624.0,0.32015587]
[1617970865493,1.55719226,58625.0,58624.0,0.32015587]
[1617970867194,1.55719226,58625.0,58624.0,0.18446587]
[1617970867594,1.55719226,58625.0,58624.0,3.05426587]
[1617970868195,1.66444881,58625.0,58624.0,0.18446587]
[1617970868594,1.64418189,58625.0,58624.0,0.18446587]
[1617970868795,1.82832075,58625.0,58624.0,0.18446587]
[1617970870598,1.7210642,58625.0,58624.0,0.18446587]
[1617970871397,1.53692534,58625.0,58624.0,0.18446587]
[1617970872815,1.65566534,58625.0,58624.0,0.18446587]
[1617970873720,1.83429847,58625.0,58624.0,0.18446587]
[1617970873913,1.65566534,58625.0,58624.0,0.18446587]
[1617970874311,1.83429884,58625.0,58624.0,0.18446587]
[1617970882215,1.88569884,58625.0,58624.0,0.18446587]
[1617970882415,1.83429884,58625.0,58624.0,0.18446587]
[1617970884016,1.71555884,58625.0,58624.0,0.18446587]
[1617970884617,2.10403968,58625.0,58624.0,0.18446587]
[1617970885617,1.53692534,58625.0,58624.0,0.18446587]
[1617970886821,1.71622143,58625.0,58624.0,0.18446587]
[1617970887623,1.53692534,58625.0,58624.0,0.18446587]
[1617970887924,1.71625657,58625.0,58624.0,0.18446587]
[1617970888223,1.53692534,58625.0,58624.0,0.18446587]
[1617970888625,1.51665945,58625.0,58624.0,0.18446587]
[1617970888824,1.69604167,58625.0,58624.0,0.18446587]
[1617970889226,1.51665945,58625.0,58624.0,0.18446587]
[1617970889623,1.51665945,58625.0,58624.0,0.488235]
[1617970889823,1.56715945,58625.0,58624.0,0.488235]
[1617970890425,1.51665945,58625.0,58624.0,0.488235]
[1617970890627,1.69378286,58625.0,58624.0,0.488235]
[1617970891027,1.51665945,58625.0,58624.0,0.488235]
[1617970891428,4.77835766,58625.0,58624.0,0.07720932]
[1617970891830,6.46148838,58625.0,58624.0,0.07720932]
[1617970892030,7.96148838,58625.0,58624.0,0.07720932]
[1617970892430,8.52782741,58625.0,58624.0,0.07720932]
[1617970893130,7.02782741,58625.0,58624.0,0.07720932]
[1617970894134,8.52782741,58625.0,58624.0,0.07720932]
[1617970894332,5.44322741,58625.0,58624.0,0.07720932]
[1617970894932,3.94322741,58625.0,58624.0,0.07720932]
[1617970895233,3.53507777,58625.0,58624.0,0.07720932]
[1617970895634,3.26009669,58625.0,58624.0,0.07720932]
[1617970898339,4.76009669,58625.0,58624.0,0.07720932]
[1617970898540,7.71379669,58625.0,58624.0,0.07720932]
[1617970898842,8.0767291,58625.0,58624.0,0.01519964]
[1617970899241,7.0767291,58625.0,58624.0,0.01519964]
[1617970899450,8.57055279,58625.0,58616.0,0.01520066]
[1617970899945,1.10983823,58617.0,58616.0,0.01520066]
[1617970900144,1.22946823,58617.0,58616.0,0.01520066]
[1617970900445,1.33672478,58617.0,58616.0,0.01520066]
[1617970900645,1.33672478,58617.0,58608.0,0.10725655]
[1617970900646,5.42073418,58617.0,58615.0,0.01520161]
[1617970900958,5.42073418,58617.0,58616.0,0.01520158]
[1617970901154,5.66395948,58617.0,58616.0,0.01520158]
[1617970901351,7.16395948,58617.0,58611.0,0.31885553]
[1617970901546,1.0,58616.0,58611.0,0.01520153]
[1617970901746,8.52634596,58617.0,58612.0,0.01520171]
[1617970902061,1.0,58613.0,58612.0,0.28520171]
[1617970902346,0.90880589,58613.0,58612.0,0.01520171]
[1617970902546,3.88309335,58613.0,58612.0,0.01520171]
[1617970902748,3.88309335,58613.0,58612.0,0.28520171]
[1617970903048,3.63986905,58613.0,58612.0,0.28520171]
[1617970903248,4.29583672,58613.0,58612.0,0.28520171]
[1617970904149,5.79957032,58613.0,58612.0,0.28520171]
[1617970906355,4.74877032,58613.0,58612.0,0.28520171]
[1617970906756,5.24261184,58613.0,58612.0,0.28520171]
[1617970906956,6.24261184,58613.0,58612.0,0.28520171]
[1617970907157,5.74877032,58613.0,58612.0,0.28520171]
[1617970908556,4.74877032,58613.0,58612.0,0.28520171]
[1617970908857,4.7285017,58613.0,58612.0,0.28520171]
[1617970914562,4.7792017,58613.0,58612.0,0.28520171]
[1617970916266,4.7285017,58613.0,58612.0,0.28520171]
[1617970917065,4.57113442,58613.0,58612.0,0.28520171]
[1617970918266,4.44140442,58613.0,58612.0,0.28520171]
[1617970920771,5.44140442,58613.0,58612.0,0.28520171]
[1617970920971,4.49290442,58613.0,58612.0,0.28520171]
[1617970921777,4.44140442,58613.0,58612.0,0.28520171]
[1617970924276,4.49190442,58613.0,58612.0,0.28520171]
[1617970924576,4.44140442,58613.0,58612.0,0.28520171]
[1617970927780,4.49250442,58613.0,58612.0,0.28520171]
[1617970928179,4.44140442,58613.0,58612.0,0.28520171]
[1617970929182,4.42114034,58613.0,58612.0,0.28520171]
[1617970932889,5.42114034,58613.0,58612.0,0.28520171]
[1617970934796,4.42114034,58613.0,58612.0,0.28520171]
[1617970939095,4.72167624,58613.0,58612.0,0.28520171]
[1617970939295,5.72167624,58613.0,58612.0,0.28520171]
[1617970939496,5.77227624,58613.0,58612.0,0.28520171]
[1617970939696,5.72167624,58613.0,58612.0,0.28520171]
[1617970941199,4.72167624,58613.0,58612.0,0.28520171]
[1617970942500,5.72167624,58613.0,58612.0,0.28520171]
[1617970945201,4.72167624,58613.0,58612.0,0.28520171]
[1617970946900,5.72167624,58613.0,58612.0,0.28520171]
[1617970948103,3.51033592,58613.0,58612.0,0.27]
[1617970948503,5.11877863,58613.0,58612.0,0.01519862]
[1617970948803,5.11877863,58613.0,58612.0,0.28519862]
[1617970949004,5.11877863,58613.0,58612.0,0.01519862]
[1617970949303,4.09851387,58613.0,58612.0,0.2851984]
[1617970951506,5.09851387,58613.0,58612.0,0.2851984]
[1617970952108,5.58979617,58613.0,58612.0,0.2851984]
[1617970952309,4.58979617,58613.0,58612.0,0.2851984]
[1617970952510,4.09851387,58613.0,58612.0,0.2851984]
[1617970954014,5.09851387,58613.0,58612.0,0.2851984]
[1617970954214,4.09851387,58613.0,58612.0,0.2851984]
[1617970955118,1.60844271,58613.0,58612.0,0.2851984]
[1617970955318,1.60844271,58613.0,58612.0,3.0705984]
[1617970956419,1.60844271,58613.0,58612.0,0.2851984]
[1617970956818,4.85114271,58613.0,58612.0,0.2851984]
[1617970957726,2.21212813,58613.0,58612.0,2.9339084]
[1617970958421,1.60844271,58613.0,58612.0,3.23763767]
[1617970958822,1.85160145,58613.0,58612.0,3.34489422]
[1617970959323,1.60844271,58613.0,58612.0,3.34489422]
[1617970959724,1.85160114,58613.0,58612.0,3.34489422]
[1617970959924,1.85160114,58613.0,58612.0,0.81179422]
[1617970960224,1.60844271,58613.0,58612.0,0.81179422]
[1617970960724,1.85159837,58613.0,58612.0,0.81179422]
[1617970961140,2.21245509,58613.0,58612.0,0.69618422]
[1617970965529,4.64914271,58613.0,58612.0,0.69618422]
[1617970966029,5.25341483,58613.0,58612.0,0.69618422]
[1617970968033,5.25341483,58613.0,58612.0,0.39245495]
[1617970969436,5.2331511,58613.0,58612.0,0.39245495]
[1617970969635,2.1924511,58613.0,58612.0,0.39245495]
[1617970969834,5.2954511,58613.0,58612.0,0.39245495]
[1617970970450,5.86010679,58613.0,58612.0,0.39245495]
[1617970970644,5.86010679,58613.0,58612.0,0.37905495]
[1617970970645,6.86010679,58613.0,58612.0,0.37905495]
[1617970970853,6.86010679,58613.0,58612.0,0.2717984]
[1617970971047,6.86010679,58613.0,58612.0,0.2612984]
[1617970971247,7.34961962,58613.0,58612.0,0.2612984]
[1617970971450,8.84961962,58613.0,58612.0,0.2612984]
[1617970972041,8.84961962,58613.0,58603.0,0.30381243]
[1617970972241,5.74661962,58613.0,58603.0,0.30381243]
[1617970972442,2.6471,58604.0,58603.0,0.30381243]
[1617970972642,2.6471,58604.0,58602.0,0.30381798]
[1617970972643,3.89703987,58604.0,58602.0,0.30381798]
[1617970972843,3.89703987,58604.0,58603.0,0.37725655]
[1617970973064,4.89703987,58604.0,58603.0,0.10725655]
[1617970973248,3.6471,58604.0,58603.0,0.10725655]
[1617970973444,3.6471,58604.0,58603.0,0.37725655]
[1617970973644,5.39047333,58604.0,58603.0,0.27]
[1617970973959,2.94939439,58604.0,58600.0,0.3038283]
[1617970974243,2.7817,58602.0,58600.0,0.3038283]
[1617970974482,2.7817,58602.0,58569.0,0.70893269]
[1617970974483,3.31317982,58601.0,58596.0,0.30387261]
[1617970974645,4.31317982,58601.0,58596.0,0.30387261]
[1617970974844,0.10725655,58597.0,58596.0,0.30387261]
[1617970975046,4.41763598,58597.0,58586.0,0.30389767]
[1617970975447,4.41763598,58597.0,58584.0,0.3038969]
[1617970975848,4.41763598,58597.0,58587.0,0.27]
[1617970976051,0.5631138,58590.0,58585.0,0.30389621]
[1617970976246,0.6999838,58590.0,58585.0,0.30389621]
[1617970976547,1.24669154,58588.0,58586.0,0.01521086]
[1617970976948,0.10725655,58587.0,58586.0,0.28521086]
[1617970977849,1.59791685,58587.0,58586.0,0.28521086]
[1617970978050,1.35454578,58587.0,58586.0,0.28521086]
[1617970978451,2.59791399,58587.0,58586.0,0.28521086]
[1617970978951,1.59791399,58587.0,58586.0,0.28521086]
[1617970979457,2.59791399,58587.0,58586.0,0.28521086]
[1617970979651,2.09499587,58587.0,58586.0,0.28521086]
[1617970980451,1.09499587,58587.0,58586.0,0.28521086]
[1617970981651,1.14639587,58587.0,58586.0,0.28521086]
[1617970981950,2.14639587,58587.0,58586.0,0.28521086]
[1617970982750,2.09499587,58587.0,58586.0,0.27]
[1617970983151,2.09499587,58587.0,58586.0,0.0152055]
[1617970983552,2.09499587,58587.0,58586.0,0.27]
[1617970983753,2.09499587,58587.0,58586.0,0.2852055]
[1617970984054,2.09499587,58587.0,58586.0,0.0152055]
[1617970984263,1.09499587,58587.0,58586.0,0.2852055]
[1617970984662,2.09499587,58587.0,58586.0,0.27]
[1617970985062,2.09499587,58587.0,58586.0,0.0152055]
[1617970985662,2.09499587,58587.0,58586.0,0.27]
[1617970985855,1.09499587,58587.0,58586.0,0.28520557]
[1617970986155,1.09499587,58587.0,58586.0,0.01520557]
[1617970986355,1.09499587,58587.0,58586.0,0.28520557]
[1617970986558,1.09499587,58587.0,58586.0,0.27]
[1617970986955,1.09499587,58587.0,58586.0,0.01520557]
[1617970987355,1.09499587,58587.0,58582.0,0.27]
[1617970987554,1.09499587,58587.0,58586.0,0.27]
[1617970987956,0.43982382,58585.0,58583.0,0.01520537]
[1617970988156,0.10725655,58587.0,58586.0,0.28520539]
[1617970988555,0.10725655,58587.0,58586.0,0.01520539]